[Event "Titled Tuesday Blitz January 10 Late 2023"]
[White "TheKnightOfBosnia"]
[Black "Skvortsov, Andrei"]
[BlackFideId "24108600"]
[WhiteElo "2537"]
[BlackElo "2313"]
[Result "1/2-1/2"]
[Round "04"]
[TimeControl "180+2"]
[Date "2023.01.10"]
[WhiteClock "0:00:18"]
[BlackClock "0:00:12"]

1. e4 {[%clk 0:00:00]}  d5 {[%clk 0:00:00]} 2. exd5 {[%clk 0:03:00]}  Qxd5 {[%clk 0:02:58]} 3. Nc3 {[%clk 0:03:00]}  Qe5+ {[%clk 0:02:59]} 4. Qe2 {[%clk 0:03:01]}  Nc6 {[%clk 0:03:00]} 5. Qxe5 {[%clk 0:03:00]}  Nxe5 {[%clk 0:02:58]} 6. d4 {[%clk 0:02:58]}  Nc6 {[%clk 0:02:59]} 7. Be3 {[%clk 0:02:58]}  Nb4 {[%clk 0:02:56]} 8. O-O-O {[%clk 0:02:58]}  c6 {[%clk 0:02:52]} 9. g3 {[%clk 0:02:57]}  Bf5 {[%clk 0:02:52]} 10. Rd2 {[%clk 0:02:56]}  O-O-O {[%clk 0:02:50]} 11. a3 {[%clk 0:02:53]}  Nd5 {[%clk 0:02:48]} 12. Nxd5 {[%clk 0:02:46]}  cxd5 {[%clk 0:02:48]} 13. Bg2 {[%clk 0:02:44]}  Nf6 {[%clk 0:02:47]} 14. f3 {[%clk 0:02:41]}  h5 {[%clk 0:02:45]} 15. Bg5 {[%clk 0:02:33]}  Nd7 {[%clk 0:02:43]} 16. h4 {[%clk 0:02:28]}  f6 {[%clk 0:02:43]} 17. Be3 {[%clk 0:02:24]}  e6 {[%clk 0:02:43]} 18. Ne2 {[%clk 0:02:24]}  Nb6 {[%clk 0:02:43]} 19. Rdd1 {[%clk 0:02:23]}  Nc4 {[%clk 0:02:43]} 20. Bd2 {[%clk 0:02:01]}  Bd6 {[%clk 0:02:31]} 21. Bf4 {[%clk 0:02:01]}  Bxf4+ {[%clk 0:02:10]} 22. Nxf4 {[%clk 0:01:50]}  Ne3 {[%clk 0:02:05]} 23. Rd2 {[%clk 0:01:51]}  e5 {[%clk 0:01:41]} 24. dxe5 {[%clk 0:01:51]}  fxe5 {[%clk 0:01:39]} 25. Nh3 {[%clk 0:01:40]}  Nxg2 {[%clk 0:01:37]} 26. Rxg2 {[%clk 0:01:33]}  e4 {[%clk 0:01:34]} 27. Ng5 {[%clk 0:01:32]}  Rhe8 {[%clk 0:01:35]} 28. fxe4 {[%clk 0:01:28]}  Bxe4 {[%clk 0:01:10]} 29. Nxe4 {[%clk 0:01:26]}  Rxe4 {[%clk 0:01:02]} 30. Rf1 {[%clk 0:01:26]}  Rg4 {[%clk 0:01:02]} 31. Rf5 {[%clk 0:01:20]}  g6 {[%clk 0:00:57]} 32. Rf7 {[%clk 0:01:17]}  Rd7 {[%clk 0:00:56]} 33. Rxd7 {[%clk 0:01:09]}  Kxd7 {[%clk 0:00:56]} 34. Kd2 {[%clk 0:00:51]}  g5 {[%clk 0:00:50]} 35. hxg5 {[%clk 0:00:52]}  h4 {[%clk 0:00:50]} 36. Ke3 {[%clk 0:00:49]}  h3 {[%clk 0:00:47]} 37. Rh2 {[%clk 0:00:39]}  Rxg3+ {[%clk 0:00:41]} 38. Kf2 {[%clk 0:00:38]}  Rxg5 {[%clk 0:00:41]} 39. Rxh3 {[%clk 0:00:38]}  Kc6 {[%clk 0:00:40]} 40. Rc3+ {[%clk 0:00:39]}  Kd6 {[%clk 0:00:39]} 41. Rd3 {[%clk 0:00:35]}  b5 {[%clk 0:00:38]} 42. Ke2 {[%clk 0:00:33]}  Rg2+ {[%clk 0:00:38]} 43. Kd1 {[%clk 0:00:32]}  a5 {[%clk 0:00:37]} 44. b3 {[%clk 0:00:32]}  Kc5 {[%clk 0:00:36]} 45. Kc1 {[%clk 0:00:32]}  d4 {[%clk 0:00:34]} 46. Kb2 {[%clk 0:00:31]}  Rg5 {[%clk 0:00:24]} 47. Rh3 {[%clk 0:00:31]}  Re5 {[%clk 0:00:22]} 48. Rh8 {[%clk 0:00:30]}  Re2 {[%clk 0:00:21]} 49. Rh3 {[%clk 0:00:28]}  a4 {[%clk 0:00:15]} 50. b4+ {[%clk 0:00:28]}  Kc4 {[%clk 0:00:14]} 51. Rh5 {[%clk 0:00:24]}  d3 {[%clk 0:00:13]} 52. Rc5+ {[%clk 0:00:22]}  Kd4 {[%clk 0:00:13]} 53. Kc1 {[%clk 0:00:22]}  Rxc2+ {[%clk 0:00:13]} 54. Rxc2 {[%clk 0:00:17]}  dxc2 {[%clk 0:00:10]} 55. Kd2 {[%clk 0:00:16]}  c1=Q+ {[%clk 0:00:11]} 56. Kxc1 {[%clk 0:00:16]}  Kc3 {[%clk 0:00:10]} 57. Kd1 {[%clk 0:00:17]}  Kb2 {[%clk 0:00:11]} 58. Kd2 {[%clk 0:00:15]}  Kb3 {[%clk 0:00:10]} 59. Kd3 {[%clk 0:00:16]}  Kxa3 {[%clk 0:00:10]} 60. Kc3 {[%clk 0:00:16]}  Ka2 {[%clk 0:00:10]} 61. Kc2 {[%clk 0:00:16]}  Ka1 {[%clk 0:00:11]} 62. Kc1 {[%clk 0:00:17]}  Ka2 {[%clk 0:00:11]} 63. Kc2 {[%clk 0:00:17]}  Ka3 {[%clk 0:00:12]} 64. Kc3 {[%clk 0:00:17]}  Ka2 {[%clk 0:00:12]} 65. Kc2 {[%clk 0:00:18]} 1/2-1/2


[Site "https://www.chess.com"]

[Event "Titled Tuesday Blitz January 10 Late 2023"]
[White "Dimitrov, Atanas"]
[Black "Berezin, Viktor"]
[WhiteFideId "2901315"]
[BlackFideId "14107872"]
[WhiteElo "2269"]
[BlackElo "2307"]
[Result "1-0"]
[Round "04"]
[TimeControl "180+2"]
[Date "2023.01.10"]
[WhiteClock "0:00:53"]
[BlackClock "0:00:02"]

1. Nf3 {[%clk 0:00:00]}  Nf6 {[%clk 0:00:00]} 2. c4 {[%clk 0:03:00]}  g6 {[%clk 0:02:59]} 3. Nc3 {[%clk 0:03:01]}  Bg7 {[%clk 0:03:00]} 4. e3 {[%clk 0:03:01]}  O-O {[%clk 0:03:00]} 5. Be2 {[%clk 0:03:01]}  d6 {[%clk 0:03:00]} 6. O-O {[%clk 0:03:02]}  e5 {[%clk 0:03:01]} 7. b3 {[%clk 0:03:02]}  Nc6 {[%clk 0:03:02]} 8. Bb2 {[%clk 0:03:03]}  a6 {[%clk 0:03:02]} 9. d3 {[%clk 0:03:04]}  Rb8 {[%clk 0:03:02]} 10. Rc1 {[%clk 0:03:04]}  b5 {[%clk 0:03:02]} 11. cxb5 {[%clk 0:03:04]}  axb5 {[%clk 0:03:02]} 12. Nxb5 {[%clk 0:03:04]}  Rxb5 {[%clk 0:03:02]} 13. Rxc6 {[%clk 0:03:03]}  Bd7 {[%clk 0:02:36]} 14. Rc1 {[%clk 0:03:02]}  Ra5 {[%clk 0:02:30]} 15. a3 {[%clk 0:03:02]}  Qb8 {[%clk 0:02:23]} 16. b4 {[%clk 0:03:01]}  Ra7 {[%clk 0:02:20]} 17. Qc2 {[%clk 0:03:00]}  Rc8 {[%clk 0:02:19]} 18. d4 {[%clk 0:02:55]}  Bf5 {[%clk 0:02:13]} 19. Qb3 {[%clk 0:02:49]}  e4 {[%clk 0:02:12]} 20. Nd2 {[%clk 0:02:45]}  c5 {[%clk 0:01:57]} 21. dxc5 {[%clk 0:02:43]}  dxc5 {[%clk 0:01:45]} 22. b5 {[%clk 0:02:35]}  h5 {[%clk 0:01:45]} 23. h3 {[%clk 0:02:14]}  Rd8 {[%clk 0:01:19]} 24. Rfd1 {[%clk 0:02:08]}  Qc8 {[%clk 0:01:01]} 25. Bf1 {[%clk 0:02:03]}  Be6 {[%clk 0:01:00]} 26. Qc2 {[%clk 0:01:58]}  Rc7 {[%clk 0:00:52]} 27. Nc4 {[%clk 0:01:56]}  Bxc4 {[%clk 0:00:33]} 28. Bxc4 {[%clk 0:01:52]}  Rxd1+ {[%clk 0:00:27]} 29. Rxd1 {[%clk 0:01:51]}  Rb7 {[%clk 0:00:25]} 30. a4 {[%clk 0:01:52]}  Qf5 {[%clk 0:00:18]} 31. Bxf6 {[%clk 0:01:50]}  Bxf6 {[%clk 0:00:15]} 32. Rd5 {[%clk 0:01:44]}  Qc8 {[%clk 0:00:13]} 33. Qxe4 {[%clk 0:01:43]}  Re7 {[%clk 0:00:12]} 34. Qd3 {[%clk 0:01:40]}  Kg7 {[%clk 0:00:12]} 35. b6 {[%clk 0:01:41]}  Rb7 {[%clk 0:00:12]} 36. Ba6 {[%clk 0:01:38]}  c4 {[%clk 0:00:08]} 37. Qe4 {[%clk 0:01:37]}  c3 {[%clk 0:00:06]} 38. Bxb7 {[%clk 0:01:31]}  Qxb7 {[%clk 0:00:05]} 39. Rd4 {[%clk 0:01:31]}  Qxb6 {[%clk 0:00:05]} 40. Rc4 {[%clk 0:01:09]}  Qa6 {[%clk 0:00:05]} 41. g3 {[%clk 0:01:09]}  Qb6 {[%clk 0:00:03]} 42. Kg2 {[%clk 0:01:05]}  Qb2 {[%clk 0:00:02]} 43. h4 {[%clk 0:01:04]}  Qa2 {[%clk 0:00:02]} 44. Qc6 {[%clk 0:01:02]}  Qb3 {[%clk 0:00:03]} 45. a5 {[%clk 0:00:58]}  Qa2 {[%clk 0:00:03]} 46. a6 {[%clk 0:00:57]}  Be5 {[%clk 0:00:02]} 47. Rxc3 {[%clk 0:00:57]}  Bxc3 {[%clk 0:00:01]} 48. Qxc3+ {[%clk 0:00:54]}  f6 {[%clk 0:00:01]} 49. Qc7+ {[%clk 0:00:55]}  Kh6 {[%clk 0:00:01]} 50. Qf4+ {[%clk 0:00:55]}  Kg7 {[%clk 0:00:01]} 51. Qc7+ {[%clk 0:00:54]}  Kh6 {[%clk 0:00:01]} 52. a7 {[%clk 0:00:54]}  Qd5+ {[%clk 0:00:02]} 53. Kh2 {[%clk 0:00:55]}  Qd2 {[%clk 0:00:02]} 54. Qf4+ {[%clk 0:00:55]}  Kg7 {[%clk 0:00:02]} 55. a8=Q {[%clk 0:00:53]} 1-0


[Site "https://www.chess.com"]

[Event "Titled Tuesday Blitz January 10 Late 2023"]
[White "Sai Krishna G V"]
[Black "reevecanada"]
[WhiteFideId "5028280"]
[WhiteElo "2384"]
[BlackElo "2497"]
[Result "1-0"]
[Round "04"]
[TimeControl "180+2"]
[Date "2023.01.10"]
[WhiteClock "0:01:06"]
[BlackClock "0:01:54"]

1. e4 {[%clk 0:00:00]}  c5 {[%clk 0:00:00]} 2. Nf3 {[%clk 0:03:00]}  d6 {[%clk 0:02:57]} 3. d4 {[%clk 0:03:00]}  cxd4 {[%clk 0:02:56]} 4. Nxd4 {[%clk 0:03:00]}  Nf6 {[%clk 0:02:56]} 5. Nc3 {[%clk 0:03:01]}  a6 {[%clk 0:02:55]} 6. Bg5 {[%clk 0:03:01]}  e6 {[%clk 0:02:55]} 7. f4 {[%clk 0:03:01]}  Be7 {[%clk 0:02:53]} 8. Qf3 {[%clk 0:03:02]}  h6 {[%clk 0:02:53]} 9. Bh4 {[%clk 0:03:02]}  Nbd7 {[%clk 0:02:53]} 10. O-O-O {[%clk 0:02:48]}  Qc7 {[%clk 0:02:52]} 11. g4 {[%clk 0:02:49]}  g5 {[%clk 0:02:50]} 12. fxg5 {[%clk 0:02:40]}  Ne5 {[%clk 0:02:48]} 13. Qg3 {[%clk 0:02:16]}  Nfxg4 {[%clk 0:02:45]} 14. gxh6 {[%clk 0:01:50]}  Bxh4 {[%clk 0:02:42]} 15. Qxh4 {[%clk 0:01:48]}  Qe7 {[%clk 0:02:40]} 16. Qg3 {[%clk 0:01:49]}  Rxh6 {[%clk 0:02:35]} 17. Be2 {[%clk 0:01:42]}  Qh4 {[%clk 0:02:33]} 18. Bxg4 {[%clk 0:01:39]}  Qxg4 {[%clk 0:02:29]} 19. Qe3 {[%clk 0:01:31]}  Rh3 {[%clk 0:02:29]} 20. Qd2 {[%clk 0:01:28]}  Nc4 {[%clk 0:02:25]} 21. Qf2 {[%clk 0:01:25]}  Qg5+ {[%clk 0:02:22]} 22. Kb1 {[%clk 0:01:24]}  Qe3 {[%clk 0:02:17]} 23. Qf6 {[%clk 0:01:24]}  Nxb2 {[%clk 0:02:17]} 24. Rhg1 {[%clk 0:01:16]}  Rh7 {[%clk 0:02:15]} 25. Rg8+ {[%clk 0:01:09]}  Kd7 {[%clk 0:01:54]} 26. Qd8# {[%clk 0:01:06]} 1-0


[Site "https://www.chess.com"]

[Event "Titled Tuesday Blitz January 10 Late 2023"]
[White "Bochnicka, Vladimir"]
[Black "Tatarinov, Dmitry"]
[WhiteFideId "14943450"]
[BlackFideId "24160067"]
[WhiteElo "2327"]
[BlackElo "2310"]
[Result "0-1"]
[Round "04"]
[TimeControl "180+2"]
[Date "2023.01.10"]
[WhiteClock "0:00:17"]
[BlackClock "0:01:54"]

1. e4 {[%clk 0:00:00]}  c6 {[%clk 0:00:00]} 2. d4 {[%clk 0:03:00]}  d5 {[%clk 0:02:51]} 3. e5 {[%clk 0:03:00]}  Bf5 {[%clk 0:02:52]} 4. h4 {[%clk 0:03:00]}  h6 {[%clk 0:02:52]} 5. g4 {[%clk 0:03:01]}  Bd7 {[%clk 0:02:51]} 6. Nc3 {[%clk 0:03:00]}  e6 {[%clk 0:02:51]} 7. Bd3 {[%clk 0:02:52]}  c5 {[%clk 0:02:49]} 8. Nf3 {[%clk 0:02:44]}  cxd4 {[%clk 0:02:49]} 9. Nxd4 {[%clk 0:02:35]}  Nc6 {[%clk 0:02:47]} 10. Nxc6 {[%clk 0:02:35]}  Bxc6 {[%clk 0:02:48]} 11. Bf4 {[%clk 0:02:26]}  h5 {[%clk 0:02:48]} 12. gxh5 {[%clk 0:02:06]}  Ne7 {[%clk 0:02:47]} 13. Bg5 {[%clk 0:02:01]}  Qb6 {[%clk 0:02:46]} 14. Bxe7 {[%clk 0:01:57]}  Bxe7 {[%clk 0:02:45]} 15. Qd2 {[%clk 0:01:49]}  Rxh5 {[%clk 0:02:42]} 16. O-O-O {[%clk 0:01:44]}  Rxe5 {[%clk 0:02:38]} 17. f4 {[%clk 0:01:41]}  Rh5 {[%clk 0:02:38]} 18. f5 {[%clk 0:01:31]}  O-O-O {[%clk 0:02:36]} 19. fxe6 {[%clk 0:01:28]}  fxe6 {[%clk 0:02:31]} 20. Rhg1 {[%clk 0:01:24]}  Bf6 {[%clk 0:02:32]} 21. Qe2 {[%clk 0:01:23]}  Re5 {[%clk 0:02:31]} 22. Qg4 {[%clk 0:01:03]}  Kb8 {[%clk 0:02:20]} 23. Rde1 {[%clk 0:00:55]}  Rxe1+ {[%clk 0:02:14]} 24. Rxe1 {[%clk 0:00:41]}  e5 {[%clk 0:02:12]} 25. h5 {[%clk 0:00:42]}  e4 {[%clk 0:02:10]} 26. Be2 {[%clk 0:00:29]}  Qe3+ {[%clk 0:02:09]} 27. Kb1 {[%clk 0:00:24]}  d4 {[%clk 0:01:57]} 28. Nd1 {[%clk 0:00:22]}  Qd2 {[%clk 0:01:57]} 29. Rf1 {[%clk 0:00:20]}  d3 {[%clk 0:01:55]} 30. cxd3 {[%clk 0:00:18]}  exd3 {[%clk 0:01:53]} 31. Qf4+ {[%clk 0:00:17]}  Qxf4 {[%clk 0:01:54]} 0-1


[Site "https://www.chess.com"]

[Event "Titled Tuesday Blitz January 10 Late 2023"]
[White "Kaplan, Avi Harrison"]
[Black "Volkov, Maksim"]
[WhiteFideId "30934559"]
[BlackFideId "54123070"]
[WhiteElo "2146"]
[BlackElo "2258"]
[Result "1-0"]
[Round "04"]
[TimeControl "180+2"]
[Date "2023.01.10"]
[WhiteClock "0:00:15"]
[BlackClock "0:00:58"]

1. b3 {[%clk 0:00:00]}  e5 {[%clk 0:00:00]} 2. Bb2 {[%clk 0:02:59]}  Nc6 {[%clk 0:02:59]} 3. e3 {[%clk 0:02:58]}  Nf6 {[%clk 0:02:59]} 4. Nf3 {[%clk 0:02:55]}  e4 {[%clk 0:03:00]} 5. Nd4 {[%clk 0:02:53]}  d5 {[%clk 0:02:59]} 6. Bb5 {[%clk 0:02:48]}  Bd7 {[%clk 0:02:51]} 7. d3 {[%clk 0:02:44]}  Bb4+ {[%clk 0:02:49]} 8. c3 {[%clk 0:02:33]}  Bd6 {[%clk 0:02:43]} 9. Bxc6 {[%clk 0:02:26]}  bxc6 {[%clk 0:02:40]} 10. h3 {[%clk 0:02:19]}  exd3 {[%clk 0:02:39]} 11. Qxd3 {[%clk 0:02:15]}  O-O {[%clk 0:02:33]} 12. O-O {[%clk 0:02:14]}  Re8 {[%clk 0:02:34]} 13. c4 {[%clk 0:02:14]}  a5 {[%clk 0:02:31]} 14. Nc3 {[%clk 0:02:12]}  Ne4 {[%clk 0:02:26]} 15. Nxe4 {[%clk 0:02:10]}  dxe4 {[%clk 0:02:22]} 16. Qe2 {[%clk 0:02:08]}  Qg5 {[%clk 0:02:23]} 17. Kh1 {[%clk 0:02:05]}  Qh4 {[%clk 0:02:22]} 18. f4 {[%clk 0:01:51]}  a4 {[%clk 0:02:21]} 19. Kh2 {[%clk 0:01:42]}  Ra5 {[%clk 0:02:11]} 20. Qe1 {[%clk 0:01:29]}  Qh5 {[%clk 0:02:08]} 21. b4 {[%clk 0:01:24]}  Raa8 {[%clk 0:02:02]} 22. c5 {[%clk 0:01:19]}  Be7 {[%clk 0:01:57]} 23. a3 {[%clk 0:01:19]}  Bf6 {[%clk 0:01:56]} 24. Rd1 {[%clk 0:01:17]}  Rad8 {[%clk 0:01:53]} 25. Qd2 {[%clk 0:01:16]}  Be6 {[%clk 0:01:50]} 26. Qc2 {[%clk 0:01:10]}  Bb3 {[%clk 0:01:46]} 27. Nxb3 {[%clk 0:00:57]}  Rxd1 {[%clk 0:01:35]} 28. Qxd1 {[%clk 0:00:53]}  Qxd1 {[%clk 0:01:05]} 29. Rxd1 {[%clk 0:00:28]}  Bxb2 {[%clk 0:01:05]} 30. Na5 {[%clk 0:00:28]}  Bxa3 {[%clk 0:01:06]} 31. Nxc6 {[%clk 0:00:26]}  Bb2 {[%clk 0:01:05]} 32. b5 {[%clk 0:00:26]}  Bc3 {[%clk 0:01:05]} 33. b6 {[%clk 0:00:20]}  cxb6 {[%clk 0:01:01]} 34. cxb6 {[%clk 0:00:19]}  a3 {[%clk 0:00:58]} 35. b7 {[%clk 0:00:19]}  a2 {[%clk 0:00:59]} 36. Rd8 {[%clk 0:00:19]}  Rxd8 {[%clk 0:00:59]} 37. Nxd8 {[%clk 0:00:14]}  a1=Q {[%clk 0:00:59]} 38. b8=Q {[%clk 0:00:14]}  Qb2 {[%clk 0:00:58]} 39. Nb7# {[%clk 0:00:15]} 1-0


[Site "https://www.chess.com"]

[Event "Titled Tuesday Blitz January 10 Late 2023"]
[White "Atanasov, Anthony"]
[Black "Novikov, Evgenij"]
[WhiteFideId "2623897"]
[BlackFideId "4125380"]
[WhiteElo "2368"]
[BlackElo "2276"]
[Result "0-1"]
[Round "04"]
[TimeControl "180+2"]
[Date "2023.01.10"]
[WhiteClock "0:01:40"]
[BlackClock "0:01:14"]

1. d4 {[%clk 0:00:00]}  d5 {[%clk 0:00:00]} 2. Bf4 {[%clk 0:03:00]}  Nf6 {[%clk 0:02:56]} 3. e3 {[%clk 0:02:58]}  c5 {[%clk 0:02:55]} 4. Nf3 {[%clk 0:02:57]}  cxd4 {[%clk 0:02:54]} 5. exd4 {[%clk 0:02:57]}  Nc6 {[%clk 0:02:54]} 6. Nbd2 {[%clk 0:02:57]}  Bg4 {[%clk 0:02:55]} 7. c3 {[%clk 0:02:57]}  e6 {[%clk 0:02:55]} 8. Qb3 {[%clk 0:02:57]}  Qc8 {[%clk 0:02:55]} 9. Bd3 {[%clk 0:02:56]}  Be7 {[%clk 0:02:50]} 10. O-O {[%clk 0:02:55]}  O-O {[%clk 0:02:49]} 11. Rfe1 {[%clk 0:02:53]}  Bh5 {[%clk 0:02:49]} 12. Ne5 {[%clk 0:02:54]}  Nd7 {[%clk 0:02:39]} 13. Re3 {[%clk 0:02:50]}  Ncxe5 {[%clk 0:02:17]} 14. dxe5 {[%clk 0:02:35]}  Nc5 {[%clk 0:02:16]} 15. Qc2 {[%clk 0:02:35]}  Bg6 {[%clk 0:02:16]} 16. Bxg6 {[%clk 0:02:26]}  fxg6 {[%clk 0:02:09]} 17. Bg3 {[%clk 0:02:25]}  Bg5 {[%clk 0:02:10]} 18. Rf3 {[%clk 0:02:24]}  Bxd2 {[%clk 0:02:08]} 19. Rxf8+ {[%clk 0:02:19]}  Qxf8 {[%clk 0:02:06]} 20. Qxd2 {[%clk 0:02:18]}  Qf5 {[%clk 0:02:07]} 21. Rd1 {[%clk 0:02:19]}  b6 {[%clk 0:01:55]} 22. f3 {[%clk 0:02:09]}  g5 {[%clk 0:01:50]} 23. b4 {[%clk 0:02:07]}  Nd7 {[%clk 0:01:46]} 24. Qe2 {[%clk 0:02:01]}  Rc8 {[%clk 0:01:43]} 25. Qa6 {[%clk 0:01:56]}  Rc7 {[%clk 0:01:39]} 26. a4 {[%clk 0:01:50]}  g4 {[%clk 0:01:23]} 27. fxg4 {[%clk 0:01:46]}  Qxg4 {[%clk 0:01:20]} 28. Rf1 {[%clk 0:01:43]}  Qc4 {[%clk 0:01:21]} 29. b5 {[%clk 0:01:40]}  Nb8 {[%clk 0:01:14]} 0-1


[Site "https://www.chess.com"]

[Event "Titled Tuesday Blitz January 10 Late 2023"]
[White "Lopez Gracia, Fernando"]
[Black "Hsu, Li Yang"]
[WhiteFideId "2207184"]
[BlackFideId "5800080"]
[WhiteElo "2255"]
[BlackElo "2427"]
[Result "1-0"]
[Round "04"]
[TimeControl "180+2"]
[Date "2023.01.10"]
[WhiteClock "0:00:21"]
[BlackClock "0:00:07"]

1. c4 {[%clk 0:00:00]}  Nf6 {[%clk 0:00:00]} 2. Nc3 {[%clk 0:03:00]}  g6 {[%clk 0:02:57]} 3. e4 {[%clk 0:03:00]}  d6 {[%clk 0:02:54]} 4. d4 {[%clk 0:03:00]}  Bg7 {[%clk 0:02:53]} 5. Be2 {[%clk 0:03:00]}  e5 {[%clk 0:02:52]} 6. d5 {[%clk 0:03:01]}  a5 {[%clk 0:02:50]} 7. Nf3 {[%clk 0:02:50]}  Na6 {[%clk 0:02:48]} 8. Be3 {[%clk 0:02:46]}  Nd7 {[%clk 0:02:47]} 9. Nd2 {[%clk 0:02:44]}  Ndc5 {[%clk 0:02:38]} 10. h4 {[%clk 0:02:43]}  f5 {[%clk 0:02:27]} 11. exf5 {[%clk 0:02:41]}  Bxf5 {[%clk 0:02:18]} 12. g4 {[%clk 0:02:40]}  Bd3 {[%clk 0:02:19]} 13. Nf3 {[%clk 0:02:28]}  e4 {[%clk 0:02:01]} 14. Nd4 {[%clk 0:02:06]}  Bxe2 {[%clk 0:01:52]} 15. Qxe2 {[%clk 0:02:03]}  Qe7 {[%clk 0:01:45]} 16. O-O-O {[%clk 0:01:58]}  Nb4 {[%clk 0:01:13]} 17. Kb1 {[%clk 0:01:44]}  Nbd3 {[%clk 0:01:05]} 18. Ndb5 {[%clk 0:01:41]}  a4 {[%clk 0:01:03]} 19. Bxc5 {[%clk 0:01:33]}  Nxc5 {[%clk 0:00:56]} 20. Nxe4 {[%clk 0:01:23]}  Qxe4+ {[%clk 0:00:54]} 21. Qxe4+ {[%clk 0:01:22]}  Nxe4 {[%clk 0:00:42]} 22. Rhe1 {[%clk 0:01:21]}  O-O {[%clk 0:00:43]} 23. Rxe4 {[%clk 0:01:17]}  Rxf2 {[%clk 0:00:42]} 24. Nd4 {[%clk 0:01:14]}  a3 {[%clk 0:00:41]} 25. bxa3 {[%clk 0:01:11]}  Rxa3 {[%clk 0:00:39]} 26. Nc2 {[%clk 0:01:00]}  Rc3 {[%clk 0:00:37]} 27. Rc1 {[%clk 0:01:00]}  Be5 {[%clk 0:00:28]} 28. Nd4 {[%clk 0:00:50]}  Rd3 {[%clk 0:00:27]} 29. Nc2 {[%clk 0:00:40]}  Rdd2 {[%clk 0:00:19]} 30. c5 {[%clk 0:00:26]}  Rh2 {[%clk 0:00:19]} 31. cxd6 {[%clk 0:00:21]}  cxd6 {[%clk 0:00:17]} 32. g5 {[%clk 0:00:21]}  Rdf2 {[%clk 0:00:18]} 33. Rc4 {[%clk 0:00:20]}  b5 {[%clk 0:00:16]} 34. Rc7 {[%clk 0:00:20]}  Rxh4 {[%clk 0:00:10]} 35. Re1 {[%clk 0:00:20]}  Rhh2 {[%clk 0:00:09]} 36. Rxe5 {[%clk 0:00:20]}  dxe5 {[%clk 0:00:08]} 37. d6 {[%clk 0:00:20]}  Rxc2 {[%clk 0:00:07]} 38. d7 {[%clk 0:00:21]} 1-0


[Site "https://www.chess.com"]

[Event "Titled Tuesday Blitz January 10 Late 2023"]
[White "Dudzinski, Pawel"]
[Black "Tologon tegin, Semetei"]
[WhiteFideId "1117890"]
[BlackFideId "13800574"]
[WhiteElo "2186"]
[BlackElo "2372"]
[Result "0-1"]
[Round "04"]
[TimeControl "180+2"]
[Date "2023.01.10"]
[WhiteClock "0:00:13"]
[BlackClock "0:00:07"]

1. e4 {[%clk 0:00:00]}  c6 {[%clk 0:00:00]} 2. d4 {[%clk 0:03:00]}  d5 {[%clk 0:02:05]} 3. exd5 {[%clk 0:02:59]}  cxd5 {[%clk 0:02:04]} 4. Bd3 {[%clk 0:03:00]}  Nf6 {[%clk 0:02:04]} 5. h3 {[%clk 0:03:01]}  Nc6 {[%clk 0:02:03]} 6. c3 {[%clk 0:03:01]}  g6 {[%clk 0:02:03]} 7. Nf3 {[%clk 0:03:02]}  Bf5 {[%clk 0:02:02]} 8. O-O {[%clk 0:03:01]}  Bxd3 {[%clk 0:02:03]} 9. Qxd3 {[%clk 0:03:01]}  Bg7 {[%clk 0:01:57]} 10. Re1 {[%clk 0:03:01]}  Ne4 {[%clk 0:01:57]} 11. Nbd2 {[%clk 0:03:02]}  f5 {[%clk 0:01:53]} 12. c4 {[%clk 0:03:00]}  e6 {[%clk 0:01:50]} 13. cxd5 {[%clk 0:02:53]}  exd5 {[%clk 0:01:44]} 14. Qb3 {[%clk 0:02:13]}  Qd7 {[%clk 0:01:43]} 15. Nxe4 {[%clk 0:02:06]}  fxe4 {[%clk 0:01:40]} 16. Ne5 {[%clk 0:01:52]}  Nxe5 {[%clk 0:01:39]} 17. dxe5 {[%clk 0:01:44]}  Bxe5 {[%clk 0:01:34]} 18. Be3 {[%clk 0:01:45]}  O-O {[%clk 0:01:33]} 19. Rad1 {[%clk 0:01:08]}  Rad8 {[%clk 0:01:30]} 20. Bg5 {[%clk 0:01:04]}  Bf6 {[%clk 0:01:15]} 21. Bxf6 {[%clk 0:01:00]}  Rxf6 {[%clk 0:01:14]} 22. Rxe4 {[%clk 0:01:00]}  Qf7 {[%clk 0:01:15]} 23. Re2 {[%clk 0:01:00]}  d4 {[%clk 0:01:05]} 24. Re7 {[%clk 0:00:56]}  Qxb3 {[%clk 0:00:59]} 25. axb3 {[%clk 0:00:40]}  Rb6 {[%clk 0:00:57]} 26. Rd3 {[%clk 0:00:41]}  h5 {[%clk 0:00:57]} 27. h4 {[%clk 0:00:39]}  Rdd6 {[%clk 0:00:47]} 28. f3 {[%clk 0:00:39]}  Rb5 {[%clk 0:00:39]} 29. Kh2 {[%clk 0:00:34]}  Kf8 {[%clk 0:00:38]} 30. Rc7 {[%clk 0:00:28]}  a5 {[%clk 0:00:36]} 31. Kg3 {[%clk 0:00:25]}  b6 {[%clk 0:00:35]} 32. Rb7 {[%clk 0:00:24]}  Rf5 {[%clk 0:00:21]} 33. f4 {[%clk 0:00:21]}  Rc5 {[%clk 0:00:16]} 34. Kf3 {[%clk 0:00:19]}  Rc2 {[%clk 0:00:08]} 35. Rc7 {[%clk 0:00:19]}  Rxc7 {[%clk 0:00:09]} 36. g3 {[%clk 0:00:15]}  Re7 {[%clk 0:00:08]} 37. f5 {[%clk 0:00:13]}  Re3+ {[%clk 0:00:07]} 38. Kf4 {[%clk 0:00:13]}  Rxd3 {[%clk 0:00:07]} 0-1


[Site "https://www.chess.com"]

[Event "Titled Tuesday Blitz January 10 Late 2023"]
[White "Adury, Anant"]
[Black "Averjanov, Alexey"]
[WhiteFideId "30964687"]
[BlackFideId "14109867"]
[WhiteElo "2123"]
[BlackElo "2399"]
[Result "0-1"]
[Round "04"]
[TimeControl "180+2"]
[Date "2023.01.10"]
[WhiteClock "0:01:05"]
[BlackClock "0:01:39"]

1. Nf3 {[%clk 0:00:00]}  d5 {[%clk 0:00:00]} 2. c4 {[%clk 0:03:00]}  e6 {[%clk 0:02:59]} 3. e3 {[%clk 0:02:54]}  Nf6 {[%clk 0:02:59]} 4. Nc3 {[%clk 0:02:53]}  dxc4 {[%clk 0:02:59]} 5. Bxc4 {[%clk 0:02:53]}  a6 {[%clk 0:02:58]} 6. O-O {[%clk 0:02:53]}  b5 {[%clk 0:02:59]} 7. Bb3 {[%clk 0:02:53]}  Bb7 {[%clk 0:02:59]} 8. d4 {[%clk 0:02:52]}  c5 {[%clk 0:02:59]} 9. dxc5 {[%clk 0:02:52]}  Bxc5 {[%clk 0:03:00]} 10. Qxd8+ {[%clk 0:02:52]}  Kxd8 {[%clk 0:02:59]} 11. Ne5 {[%clk 0:02:49]}  Ke7 {[%clk 0:03:00]} 12. a4 {[%clk 0:02:50]}  b4 {[%clk 0:03:00]} 13. Nb1 {[%clk 0:02:50]}  Nc6 {[%clk 0:02:57]} 14. Nxc6+ {[%clk 0:02:37]}  Bxc6 {[%clk 0:02:55]} 15. Nd2 {[%clk 0:02:35]}  a5 {[%clk 0:02:56]} 16. Nc4 {[%clk 0:02:28]}  Rhd8 {[%clk 0:02:48]} 17. Bd2 {[%clk 0:02:24]}  Ne4 {[%clk 0:02:44]} 18. Rfd1 {[%clk 0:02:18]}  Nxd2 {[%clk 0:02:42]} 19. Nxd2 {[%clk 0:02:18]}  Bd6 {[%clk 0:02:40]} 20. Bc4 {[%clk 0:02:15]}  Be5 {[%clk 0:02:36]} 21. Ra2 {[%clk 0:02:07]}  Ra7 {[%clk 0:02:32]} 22. Bb5 {[%clk 0:01:40]}  Bxb5 {[%clk 0:02:22]} 23. axb5 {[%clk 0:01:04]}  Rad7 {[%clk 0:01:39]} 24. b3 {[%clk 0:01:05]}  a4 {[%clk 0:01:39]} 0-1


[Site "https://www.chess.com"]